bitfinex-derivatives/quotes_SOLF0:USTF0_20241203
["timestamp","ask_amount","ask_price","bid_price","bid_amount"]
[1733214686280,21.8618062,227.34,227.19,1.2814]
[1733214686281,19.6628062,227.34,227.19,1.2814]
[1733214686590,19.6628062,227.3,227.25,2.1998]
[1733214686785,2.3,227.29,227.19,1.2814]
[1733214687479,3.6512,227.29,227.19,1.2814]
[1733214688286,19.6628062,227.25,227.18,2.2004]
[1733214688491,2.3,227.24,227.08,1.53521951]
[1733214688686,2.3,227.24,227.09,5.06638332]
[1733214688890,2.3,227.24,227.2,2.2003]
[1733214690085,2.3,227.24,227.08,1.3496]
[1733214690393,2.3,227.24,227.09,5.06688284]
[1733214690590,2.3,227.24,227.17,2.2006]
[1733214690791,2.2001,227.23,227.1,2.86399347]
[1733214691093,2.2001,227.23,227.11,1.10154139]
[1733214691293,2.2001,227.23,227.12,1.10154139]
[1733214691485,2.3,227.24,227.13,1.10154139]
[1733214691688,2.3,227.24,227.17,2.2006]
[1733214691996,2.3,227.23,227.08,1.3496]
[1733214692197,2.3,227.23,227.13,2.201]
[1733214692389,2.3,227.23,227.08,1.3496]
[1733214692597,2.3,227.23,227.09,2.86410833]
[1733214692796,2.3,227.23,227.14,2.2008]
[1733214692797,4.5,227.23,227.14,2.2008]
[1733214692992,4.5,227.23,227.08,1.3496]
[1733214693190,19.6628062,227.21,227.12,2.201]
[1733214693398,19.6628062,227.21,227.08,1.3496]
[1733214693592,12.2956015,227.17,227.09,1.10169204]
[1733214693793,2.3,227.16,227.14,2.2009]
[1733214694188,2.3,227.16,227.05,2.6006]
[1733214694399,2.3,227.16,227.12,2.2011]
[1733214694696,2.3,227.16,227.06,2.20334716]
[1733214694899,12.2956015,227.14,227.08,2.2014]
[1733214695092,12.2956015,227.14,227.09,1.10174852]
[1733214695287,12.2956015,227.14,227.05,1.2864]
[1733214695492,12.2956015,227.14,227.06,1.10175174]
[1733214695695,21.97875325,227.16,227.05,1.2864]
[1733214697098,24.17945325,227.16,227.05,1.2864]
[1733214697801,21.97875325,227.16,227.05,1.2864]
[1733214698900,21.97875325,227.16,226.97,2.5819]
[1733214699096,21.97875325,227.16,227.09,2.2014]
[1733214699097,24.17955325,227.16,227.09,2.2014]
[1733214699302,21.97875325,227.16,226.97,2.5819]
[1733214699502,21.97875325,227.16,226.98,1.10199697]
[1733214699803,2.2008,227.15,226.99,1.10199697]
[1733214700001,2.2008,227.15,226.97,2.5819]
[1733214700295,2.2008,227.15,226.98,1.1020652]
[1733214700601,24.17945325,227.16,226.97,2.5819]
[1733214700804,19.67875325,227.16,226.98,1.10201189]
[1733214700994,45.98049166,227.17,227.0,19.67875325]
[1733214701192,2.3,227.16,227.01,1.10185325]
[1733214701398,2.3,227.16,227.0,19.67875325]
[1733214701599,2.3,227.16,226.99,19.67875325]
[1733214701800,2.3,227.15,227.0,1.10188199]
[1733214702000,2.3,227.15,227.01,1.10188199]
[1733214702196,2.3,227.15,227.03,2.2019]
[1733214702405,2.3,227.15,226.99,21.97875325]
[1733214702599,2.3,227.15,227.0,5.06858291]
[1733214702904,2.3,227.15,227.12,2.2011]
[1733214704105,2.3,227.15,226.99,21.97875325]
[1733214704608,2.3,227.15,227.0,1.76295569]
[1733214704794,2.3,227.15,226.99,21.97875325]
[1733214704996,2.3,227.15,227.0,1.7628983]
[1733214705200,2.3,227.15,227.08,2.2015]
[1733214706106,2.3,227.15,226.97,2.5819]
[1733214706311,2.3,227.15,226.98,1.10195933]
[1733214706497,2.3,227.15,227.03,2.2019]
[1733214707103,2.2012,227.11,227.03,2.2019]
[1733214707306,2.2012,227.11,226.97,2.5819]
[1733214707307,2.3,227.1,226.97,2.5819]
[1733214707512,2.3,227.1,226.93,19.67875325]
[1733214707708,2.3,227.1,226.91,24.11737406]
[1733214707709,2.2016,227.07,226.97,2.2025]
[1733214708204,2.202,227.03,226.93,2.2028]
[1733214708402,2.3,227.02,226.93,2.2028]
[1733214709201,2.3,227.02,226.94,2.2028]
[1733214710313,2.3,227.02,226.87,1.2816]
[1733214713113,4.5021,227.02,226.87,1.2816]
[1733214713621,2.3,227.02,226.87,1.2816]
[1733214714117,2.3,227.02,226.94,2.2028]
[1733214714318,2.3,227.02,226.87,1.2816]
[1733214714717,2.3,227.02,226.96,2.2026]
[1733214715321,1.3477,227.03,226.94,2.2027]
[1733214715517,12.31463524,227.0,226.94,2.2027]
[1733214715718,12.31463524,227.0,226.87,1.2816]
[1733214715924,2.3,226.99,226.87,1.2816]
[1733214716928,2.3,226.99,226.93,2.2028]
[1733214717130,2.3,226.99,226.87,1.2816]
[1733214718128,2.3,226.99,226.94,2.2028]
[1733214718331,2.3,226.99,226.87,1.2816]
[1733214719226,2.3,226.99,226.95,2.2026]
[1733214719422,2.3,226.99,226.87,1.2816]
[1733214719729,12.31463524,227.0,226.96,2.2026]
[1733214720226,2.3,226.99,226.96,2.2026]
[1733214722126,2.3,226.99,226.87,1.2816]
[1733214722327,2.3,226.99,226.88,12.31463524]
[1733214722526,47.56538,227.14,226.88,12.31463524]
[1733214722724,47.56538,227.14,226.89,1.10238974]
[1733214722725,12.31463524,227.05,226.89,1.10238974]
[1733214722930,2.3,227.04,226.88,12.31463524]
[1733214723128,2.3,227.04,226.89,1.1023884]
[1733214723327,12.31463524,227.02,226.88,12.31463524]
[1733214723528,12.31463524,227.02,226.89,1.10238667]
[1733214723729,2.3,227.01,226.88,12.31463524]
[1733214723933,2.3,227.01,226.89,1.10239432]
[1733214724229,2.3,227.01,226.95,2.2026]
[1733214725025,12.31463524,226.99,226.93,2.2029]
[1733214725534,12.31463524,226.99,226.87,1.2816]
[1733214726231,12.31463524,226.99,226.92,2.203]
[1733214726739,12.31463524,226.99,226.93,2.2029]
[1733214726940,12.31463524,226.99,226.87,1.2816]
[1733214727140,2.3,226.98,226.88,1.10260971]
[1733214727435,2.3,226.98,226.87,1.2816]
[1733214727637,2.3,226.98,226.88,1.10260681]
[1733214727835,2.3,226.98,226.87,1.2816]
[1733214728036,2.3,226.98,226.88,1.10260681]
[1733214728232,2.3,226.98,226.89,1.10260681]
[1733214728539,2.3,226.98,226.9,1.10255722]
[1733214728733,2.3,226.98,226.97,2.2025]
[1733214729936,2.3,227.0,226.91,12.31463524]
[1733214730130,2.3,227.0,226.92,2.8661457]
[1733214730336,2.3,227.0,226.93,2.8661457]
[1733214730637,2.3,227.0,226.99,2.2023]
[1733214730837,2.3,227.0,226.91,12.31463524]
[1733214731135,2.3,227.0,226.99,2.2023]
[1733214734637,13.60253524,227.08,227.02,2.202]
[1733214734847,13.60253524,227.08,226.92,1.3625]
[1733214735041,2.18393716,227.23,226.97,12.31463524]
[1733214735042,2.3,227.07,226.97,12.31463524]
[1733214735240,2.3,227.06,226.98,1.3294]
[1733214735440,2.3,227.06,227.05,2.2017]
[1733214737140,0.41458,227.14,227.0,12.31463524]
[1733214737348,2.3,227.13,227.0,12.31463524]
[1733214737846,2.3,227.13,227.01,1.2914]
[1733214738040,2.3,227.13,227.03,12.31463524]
[1733214738747,2.3,227.13,227.01,1.2914]
[1733214739345,12.31463524,227.11,226.99,1.2929]
[1733214740545,12.31463524,227.11,227.06,2.2016]
[1733214740745,12.31463524,227.11,226.99,1.2929]
[1733214742854,3.6568,227.13,226.99,13.60753524]
[1733214743245,3.6568,227.13,227.1,2.2013]
[1733214743445,0.41458,227.14,227.02,12.31463524]
[1733214743643,2.3,227.13,227.02,12.31463524]
[1733214743850,2.3,227.13,227.0,2.3]
[1733214744244,2.3,227.13,227.02,12.31463524]
[1733214744647,2.3,227.13,227.05,12.31463524]
[1733214744847,0.41458,227.14,227.08,12.31463524]
[1733214745051,0.41458,227.14,227.13,2.201]
[1733214745653,48.28049166,227.17,227.16,2.2007]
[1733214745850,2.3,227.17,227.16,2.2007]
[1733214746050,2.3,227.21,227.11,12.31463524]
[1733214746857,2.3,227.21,227.2,2.2003]
[1733214747551,1.3725,227.27,227.21,2.2001]
[1733214747747,2.3,227.26,227.14,12.31463524]
[1733214748455,12.31463524,227.25,227.11,12.31463524]
[1733214748659,12.62705524,227.25,227.11,12.31463524]
[1733214748852,12.62705524,227.25,227.2,2.2003]
[1733214750344,12.62705524,227.25,227.11,12.31463524]
[1733214750551,0.31242,227.25,227.14,12.31463524]
[1733214750959,0.31242,227.25,227.22,2.2]
[1733214751550,0.31242,227.25,227.24,2.1999]
[1733214752758,2.3,227.31,227.3,2.1993]
[1733214752958,2.3,227.34,227.23,12.31463524]
[1733214753159,2.3,227.35,227.26,12.31463524]
[1733214753354,12.31463524,227.41,227.26,12.31463524]
[1733214753558,2.3,227.4,227.26,12.31463524]
[1733214753760,2.3,227.4,227.38,2.1985]
[1733214754749,2.3,227.4,227.32,12.31463524]
[1733214754956,2.3,227.4,227.29,12.31463524]
[1733214755558,2.3,227.4,227.36,2.1987]
[1733214756454,16.27363524,227.47,227.32,12.31463524]
[1733214756649,16.27363524,227.47,227.35,12.31463524]
[1733214756650,2.3,227.46,227.35,12.31463524]
[1733214757051,2.3,227.46,227.31,2.3]
[1733214757052,2.3,227.46,227.38,2.1985]
[1733214757351,2.3,227.46,227.32,12.31463524]
[1733214757750,12.31463524,227.44,227.32,12.31463524]
[1733214758151,12.31463524,227.44,227.37,2.1986]
[1733214758355,12.31463524,227.44,227.29,12.31463524]
[1733214758753,12.31463524,227.44,227.3,12.31463524]
[1733214758959,2.3,227.46,227.3,12.31463524]
[1733214759160,2.3,227.46,227.33,12.31463524]
[1733214759365,2.3,227.46,227.36,12.31463524]
[1733214759756,2.3,227.46,227.44,2.1979]
[1733214759960,2.3,227.49,227.39,12.31463524]
[1733214760165,12.31463524,227.55,227.39,12.31463524]
[1733214760166,2.3,227.5,227.39,12.31463524]
[1733214760362,2.3,227.5,227.48,2.1975]
[1733214763692,2.3,227.53,227.52,2.1972]
[1733214763892,2.3,227.57,227.46,19.60912874]
[1733214764096,2.3,227.57,227.49,2.1975]
[1733214764383,2.3,227.57,227.42,19.60912874]
[1733214765994,2.3,227.56,227.42,19.60912874]
[1733214766396,21.78766671,227.65,227.46,19.60912874]
[1733214766696,2.3,227.64,227.46,19.60912874]
[1733214767686,2.3,227.64,227.51,2.1973]
[1733214767896,4.496,227.64,227.46,19.60912874]
[1733214768195,2.3,227.64,227.46,19.60912874]
[1733214768395,2.3,227.64,227.54,2.197]
[1733214768593,4.496,227.64,227.54,2.197]
[1733214768999,4.496,227.64,227.46,19.60912874]
[1733214769000,2.3,227.64,227.46,19.60912874]
[1733214769603,19.60912874,227.65,227.56,2.1968]
[1733214769795,2.3,227.63,227.56,2.1968]
[1733214769998,2.3,227.63,227.46,19.60912874]
[1733214770295,2.3,227.63,227.47,2.85940899]
[1733214770500,2.3,227.63,227.48,1.09977264]
[1733214770803,2.3,227.63,227.55,2.1969]
[1733214770998,2.3,227.63,227.46,19.60912874]
[1733214771198,2.3,227.63,227.47,2.85942223]
[1733214771499,2.3,227.63,227.46,19.60912874]
[1733214771500,2.3,227.63,227.48,1.09977778]
[1733214771807,2.1965,227.6,227.49,1.09977778]
[1733214772003,1.3633,227.59,227.41,0.18433228]
[1733214772303,1.3633,227.59,227.42,5.05965146]
[1733214772304,19.60912874,227.57,227.42,5.05965146]
[1733214772500,21.80582874,227.57,227.43,2.85985419]
[1733214772699,21.80582874,227.57,227.44,2.85985419]
[1733214772893,21.80582874,227.57,227.45,1.09997542]
[1733214773093,19.60912874,227.57,227.5,2.1974]
[1733214774100,19.60912874,227.57,227.38,4.26913228]
[1733214774288,2.3,227.58,227.53,2.1971]
[1733214774592,2.3,227.57,227.45,19.60912874]
[1733214774789,2.3,227.57,227.49,2.1975]
[1733214774985,2.3,227.57,227.5,1.09979013]
[1733214775185,2.3,227.57,227.45,19.60912874]
[1733214775390,2.3,227.57,227.56,2.1968]
[1733214776796,2.3,227.57,227.54,2.1969]
[1733214777298,2.3,227.57,227.45,19.60912874]
[1733214777590,2.3,227.57,227.46,5.05916111]
[1733214777787,2.3,227.57,227.47,2.85952584]
[1733214777988,2.3,227.57,227.48,2.85952584]
[1733214778277,2.3,227.57,227.49,2.85958209]
[1733214778570,2.3,227.57,227.5,1.09981763]
[1733214778967,2.3,227.57,227.47,2.1977]
[1733214779169,2.3,227.57,227.48,2.85977554]
[1733214779371,2.3,227.57,227.49,1.09991367]
[1733214779570,2.3,227.57,227.51,2.1973]
[1733214779875,2.3,227.57,227.43,0.18408232]
[1733214780170,2.3,227.57,227.44,5.05971914]
[1733214780375,2.3,227.57,227.45,5.05971914]
[1733214780575,2.3,227.57,227.42,0.18408232]
[1733214780576,2.3,227.57,227.46,2.85984125]
[1733214780777,2.3,227.57,227.47,2.85984125]
[1733214780974,2.3,227.57,227.5,2.1974]
[1733214781269,2.3,227.57,227.41,19.79384775]
[1733214781475,2.3,227.57,227.42,5.24481124]
[1733214781775,12.25452558,227.56,227.49,2.1974]
[1733214782275,12.25452558,227.56,227.5,2.1974]
[1733214782474,2.3,227.57,227.44,12.25452558]
[1733214782671,2.3,227.57,227.45,5.06023266]
[1733214782874,2.3,227.57,227.46,2.8601315]
[1733214783076,2.3,227.57,227.47,2.8601315]
[1733214783276,2.3,227.57,227.48,1.10005058]
[1733214783471,2.3,227.57,227.44,12.25452558]
[1733214783472,2.3,227.57,227.51,2.1972]
[1733214783877,2.3,227.57,227.44,12.25452558]
[1733214784072,12.25452558,227.56,227.45,5.06021243]
[1733214784281,12.25452558,227.56,227.46,5.06021243]
[1733214784480,2.3,227.57,227.47,1.10004618]
[1733214784685,2.3,227.57,227.47,2.86012007]
[1733214785083,2.3,227.57,227.48,1.10004618]
[1733214785286,2.3,227.57,227.47,1.76007389]
[1733214785484,2.3,227.57,227.48,1.09993834]
[1733214785788,2.3,227.57,227.41,12.25452558]
[1733214785985,2.3,227.57,227.42,3.30016219]
[1733214786186,2.3,227.57,227.43,3.30016219]
[1733214786385,2.3,227.57,227.44,1.10005406]
[1733214786587,12.25452558,227.55,227.45,2.86014056]
[1733214786880,12.25452558,227.55,227.38,4.26951901]
[1733214787083,12.25452558,227.52,227.39,5.06077491]
[1733214787382,12.25452558,227.52,227.4,5.06077491]
[1733214787383,2.3,227.51,227.4,5.06077491]
[1733214787579,4.4973,227.51,227.44,2.1979]
[1733214787778,4.4973,227.51,227.45,1.10016846]
[1733214787779,12.25452558,227.49,227.45,1.10016846]
[1733214787985,12.25452558,227.46,227.38,0.18471901]
[1733214788190,12.25452558,227.46,227.39,6.15899492]
[1733214788191,2.3,227.45,227.39,6.15899492]
[1733214788384,2.3,227.45,227.4,1.76026441]
[1733214788585,2.3,227.45,227.39,2.1985]
[1733214788786,12.25452558,227.43,227.36,0.37228]
[1733214789090,12.25452558,227.43,227.38,2.1985]
[1733214789494,12.25452558,227.43,227.36,0.37228]
[1733214789790,12.25452558,227.43,227.37,2.1986]
[1733214789990,12.25452558,227.43,227.36,0.37228]
[1733214790388,12.25452558,227.4,227.36,0.37228]
[1733214790581,12.25452558,227.37,227.25,1.3494]
[1733214790786,12.25452558,227.34,227.2,24.09723462]
[1733214790986,2.3,227.33,227.21,1.76118528]
[1733214791187,2.3,227.33,227.22,20.61433493]
[1733214791388,2.3,227.33,227.29,2.1994]
[1733214791791,2.3,227.33,227.22,16.11162558]
[1733214791989,12.25452558,227.37,227.33,2.199]
[1733214792218,2.3,227.36,227.33,2.199]
[1733214792415,2.3,227.35,227.22,16.11162558]
[1733214793011,2.3,227.35,227.23,3.22007983]
[1733214793207,12.25452558,227.34,227.22,3.8571]
[1733214793515,12.25452558,227.34,227.23,16.58298343]
[1733214793716,12.25452558,227.34,227.27,2.1996]
[1733214793914,12.25452558,227.34,227.22,3.8571]
[1733214794111,12.25452558,227.34,227.23,16.58413445]
[1733214794302,12.25452558,227.34,227.29,2.1994]
[1733214794704,12.25452558,227.34,227.22,3.8571]
[1733214794912,12.25452558,227.34,227.23,16.59188343]
[1733214795108,12.25452558,227.34,227.24,10.14384567]
[1733214795305,12.25452558,227.34,227.28,0.2588]
[1733214795606,12.25452558,227.34,227.29,2.1994]
[1733214795804,12.25452558,227.34,227.28,0.2588]
[1733214796302,12.25452558,227.37,227.28,0.2588]
[1733214796498,2.3,227.36,227.28,0.2588]
[1733214796702,2.3,227.35,227.32,2.1991]
[1733214796993,2.3,227.34,227.28,0.2588]
[1733214797195,2.3,227.33,227.28,0.2588]
[1733214797696,2.3,227.33,227.28,2.4583]
[1733214798296,2.3,227.33,227.3,2.1993]
[1733214798695,2.3,227.33,227.28,0.2588]
[1733214799391,12.25452558,227.31,227.28,0.2588]
[1733214800091,12.25452558,227.27,227.12,41.81718839]
[1733214800287,2.3,227.26,227.2,2.2002]
[1733214801198,12.25452558,227.24,227.12,30.92976281]
[1733214801395,12.25452558,227.24,227.13,3.22858351]
[1733214801595,12.25452558,227.24,227.12,30.92976281]
[1733214801995,12.25452558,227.24,227.19,2.2004]
[1733214802889,12.25452558,227.24,227.12,30.92976281]
[1733214803297,12.25452558,227.21,227.12,1.3671]
[1733214803495,12.25452558,227.18,227.07,2.7939]
[1733214803702,12.25452558,227.15,226.99,0.18729311]
[1733214803891,12.25452558,227.12,227.0,4.32656319]
[1733214804096,2.3,227.11,227.06,2.2016]
[1733214804395,2.3,227.11,226.98,12.25452558]
[1733214804891,2.3,227.11,227.01,2.202]
[1733214805096,2.3,227.11,226.98,12.25452558]
[1733214806095,12.25452558,227.15,226.98,16.34332558]
[1733214806294,12.25452558,227.15,227.01,12.25452558]
[1733214806496,2.3,227.14,227.01,12.25452558]
[1733214806694,2.3,227.13,227.11,2.2011]
[1733214807089,2.3,227.12,227.11,2.2012]
[1733214807290,2.3,227.12,227.01,12.25452558]
[1733214807692,2.3,227.12,227.04,2.2018]
[1733214807896,14.55452558,227.12,226.98,16.34332558]
[1733214808298,14.55452558,227.12,227.06,2.2016]
[1733214808501,14.55452558,227.12,226.98,16.34332558]
[1733214809200,2.3,227.11,226.98,16.34332558]
[1733214809795,12.25452558,227.15,227.01,12.25452558]
[1733214809999,2.3,227.14,227.01,12.25452558]
[1733214810597,2.3,227.14,226.98,16.34332558]
[1733214810798,12.25452558,227.12,226.98,16.34332558]
[1733214811007,12.25452558,227.12,227.09,2.2013]
[1733214811201,12.25452558,227.12,226.98,16.34332558]
[1733214812203,12.25452558,227.12,227.02,2.202]
[1733214812403,12.25452558,227.12,226.98,16.34332558]
[1733214813704,12.25452558,227.12,227.08,2.2015]
[1733214815800,12.25452558,227.12,227.09,2.2014]
[1733214817506,12.25452558,227.12,227.1,2.2013]
[1733214819405,2.3,227.14,226.98,16.34332558]
[1733214819710,2.3,227.14,227.01,12.25452558]
[1733214819912,2.3,227.14,227.12,2.2011]
[1733214820302,2.3,227.14,226.98,16.34332558]
[1733214820501,12.25452558,227.12,227.08,2.2014]
[1733214821205,12.25452558,227.12,226.98,16.34332558]
[1733214821404,12.25452558,227.12,226.99,3.20362414]
[1733214821605,12.25452558,227.12,226.98,16.34332558]
[1733214821805,2.3,227.11,227.1,2.2013]
[1733214822005,2.3,227.11,226.98,16.34332558]
[1733214822208,2.3,227.1,227.02,2.202]
[1733214822403,12.25452558,227.12,226.98,16.34332558]
[1733214822704,12.25452558,227.15,227.13,2.201]
[1733214822905,2.3,227.14,227.01,12.25452558]
[1733214823305,2.3,227.14,227.11,2.2011]
[1733214824401,2.3,227.14,226.98,4.0888]
[1733214824402,12.25452558,227.12,226.98,4.0888]
[1733214824608,12.25452558,227.09,226.98,4.0888]
[1733214824803,2.3,227.08,226.98,4.0888]
[1733214825003,2.3,227.08,227.06,2.2016]
[1733214825210,12.25452558,227.12,226.98,16.34332558]
[1733214825410,2.3,227.11,227.09,2.2014]
[1733214826511,12.25452558,227.12,227.09,2.2014]
[1733214826711,2.3,227.1,227.09,2.2014]
[1733214827010,2.3,227.1,227.01,12.25452558]
[1733214828110,2.3,227.1,227.0,12.25452558]
[1733214828301,2.3,227.1,227.09,2.2014]
[1733214830915,12.25452558,227.15,227.13,2.201]
[1733214831109,2.3,227.14,227.13,2.201]
[1733214831306,2.3,227.14,227.03,12.25452558]
[1733214831307,12.25452558,227.18,227.03,12.25452558]
[1733214831508,2.3,227.17,227.04,11.24621297]
[1733214831807,2.3,227.17,227.05,9.48354911]
[1733214832009,2.3,227.17,227.06,4.3259276]
[1733214832205,2.3,227.17,227.07,8.38836132]
[1733214832405,2.3,227.17,227.16,2.2007]
[1733214834421,2.3,227.17,227.08,2.6356]
[1733214834619,2.3,227.17,227.09,3.23511596]
[1733214834912,2.3,227.17,227.08,2.6356]
[1733214835114,2.3,227.17,227.15,2.2008]
[1733214836314,2.3,227.16,227.15,2.2008]
[1733214838634,12.25452558,227.21,227.2,2.2003]
[1733214838833,12.25452558,227.21,227.09,12.25452558]
[1733214838834,2.3,227.21,227.09,12.25452558]
[1733214839127,2.3,227.2,227.19,2.2004]
[1733214839333,2.3,227.2,227.08,2.6356]
[1733214839540,7.8674978,227.16,227.08,10.5030978]
[1733214839723,2.3,227.15,227.14,2.2009]
[1733214840915,8.4819278,227.22,227.21,2.2002]
[1733214841217,2.91443,227.22,227.21,2.2002]
[1733214841516,8.4819278,227.22,227.21,2.2002]
[1733214841716,2.91443,227.22,227.21,2.2002]
[1733214842113,0.61443,227.22,227.21,2.2002]
[1733214842907,0.61443,227.22,227.19,7.8674978]
[1733214842908,2.3,227.26,227.19,7.8674978]
[1733214843111,2.3,227.26,227.2,1.3943]
[1733214843814,2.3,227.26,227.25,2.1998]
[1733214844209,2.3,227.26,227.2,1.3943]
[1733214844210,12.28011415,227.34,227.2,1.3943]
[1733214844513,2.3,227.3,227.2,1.3943]
[1733214844719,2.3,227.3,227.29,2.1995]
[1733214847816,2.3,227.35,227.25,12.28011415]
[1733214848315,12.28011415,227.34,227.21,1.4005]
[1733214848538,12.28011415,227.31,227.2,1.3943]
[1733214848818,12.28011415,227.28,227.2,1.3943]
[1733214849016,2.3,227.27,227.2,1.3943]
[1733214849519,2.3,227.27,227.25,2.1998]
[1733214850016,2.3,227.27,227.2,1.3943]
[1733214851219,2.3,227.27,227.17,1.3684]
[1733214851810,2.3,227.27,227.2,2.2003]
[1733214852014,2.3,227.27,227.17,1.3684]
[1733214852521,12.28011415,227.25,227.14,1.3203]
[1733214852716,12.28011415,227.22,227.06,12.28011415]
[1733214853019,2.3,227.21,227.06,12.28011415]
[1733214853611,2.3,227.21,227.18,2.2005]
[1733214853811,2.3,227.21,227.06,12.28011415]
[1733214854425,12.28011415,227.22,227.09,12.28011415]
[1733214854718,12.28011415,227.26,227.05,3.9813]
[1733214854719,12.28011415,227.26,227.12,12.28011415]
[1733214854927,12.28011415,227.26,227.25,2.1998]
[1733214855123,14.58011415,227.26,227.25,2.1998]
[1733214856117,14.58011415,227.26,227.23,2.1999]
[1733214856324,14.58011415,227.26,227.09,12.28011415]
[1733214856525,12.28011415,227.22,227.2,2.2003]
[1733214856725,2.3,227.21,227.2,2.2003]
[1733214856925,2.3,227.21,227.09,12.28011415]
[1733214857223,2.3,227.21,227.2,2.2003]
[1733214857820,12.28011415,227.28,227.25,2.1998]
[1733214858025,2.3,227.27,227.12,12.28011415]
[1733214859020,2.3,227.26,227.12,12.28011415]
[1733214859927,12.28011415,227.25,227.21,2.2002]
[1733214860422,12.28011415,227.25,227.05,3.9813]
[1733214860619,12.28011415,227.22,227.08,12.28011415]
[1733214860824,2.3,227.21,227.08,12.28011415]
[1733214861928,2.3,227.21,227.2,2.2003]
[1733214864026,2.3,227.21,227.05,16.26141415]
[1733214864231,3.6025,227.21,227.05,16.26141415]
[1733214864627,3.6025,227.21,227.17,2.2006]
[1733214864826,3.6025,227.21,227.05,16.26141415]
[1733214865123,3.6025,227.21,227.18,2.2005]
[1733214865630,12.28011415,227.19,227.05,16.26141415]
[1733214866423,12.28011415,227.19,227.18,2.2005]
[1733214867130,3.6025,227.21,227.05,16.26141415]
[1733214867428,1.3025,227.21,227.08,12.28011415]
[1733214867632,2.3,227.2,227.08,12.28011415]
[1733214867829,2.3,227.19,227.08,12.28011415]
[1733214868132,2.3,227.18,227.08,12.28011415]
[1733214868333,2.3,227.17,227.08,12.28011415]
[1733214868834,2.3,227.17,227.16,2.2007]
[1733214870933,14.98641415,227.25,227.23,2.2]
[1733214871227,14.98641415,227.25,227.05,3.9813]
[1733214871228,2.3,227.24,227.11,12.28011415]
[1733214871925,12.28011415,227.25,227.24,2.1999]
[1733214872126,14.58011415,227.25,227.24,2.1999]
[1733214872524,14.58011415,227.25,227.14,12.28011415]
[1733214872525,2.3,227.25,227.14,12.28011415]
[1733214873831,2.3,227.25,227.15,2.621]
[1733214874030,2.3,227.25,227.24,2.1999]
[1733214875832,12.28011415,227.34,227.28,2.1996]
[1733214876037,2.3,227.29,227.2,12.28011415]
[1733214876425,2.3,227.29,227.28,2.1996]
[1733214878134,2.3,227.29,227.16,1.2785]
[1733214878933,2.3,227.29,227.26,2.1997]
[1733214880531,2.3,227.29,227.25,2.1998]
[1733214880532,12.28011415,227.28,227.25,2.1998]
[1733214880732,12.28011415,227.28,227.16,1.2785]
[1733214880932,12.28011415,227.25,227.18,2.2005]
[1733214881127,2.3,227.24,227.15,2.621]
[1733214881635,2.3,227.24,227.21,2.2002]
[1733214882733,2.3,227.24,227.22,2.2001]
[1733214884137,2.3,227.24,227.23,2.2]
[1733214885338,2.3,227.24,227.09,13.63111415]
[1733214885339,2.3,227.24,227.09,1.351]
[1733214885633,12.28011415,227.19,227.09,1.351]
[1733214885838,2.3,227.18,227.17,2.2006]
[1733214890335,12.28011415,227.22,227.09,13.63111415]
[1733214890536,12.28011415,227.22,227.21,2.2002]
[1733214890841,13.54331415,227.25,227.09,13.63111415]
[1733214891039,2.3,227.24,227.12,12.28011415]
[1733214891636,2.3,227.24,227.23,2.2]
[1733214893641,13.62761415,227.28,227.26,2.1997]
[1733214893840,2.3,227.27,227.26,2.1997]
[1733214894544,12.28011415,227.28,227.27,2.1996]
[1733214894746,14.58011415,227.28,227.27,2.1996]
[1733214894946,14.58011415,227.28,227.25,2.1998]
[1733214895244,14.58011415,227.28,227.12,12.28011415]